fUST/lending_fUST_20260130
["ID","MTS","AMOUNT","RATE_DAILY","PERIOD"]
[404028755,1769752162632,-500.0,9.65e-05,2]
[404028756,1769752162655,-500.0,9.65e-05,2]
[404028757,1769752162675,-500.0,9.65e-05,2]
[404028758,1769752162697,-500.0,9.65e-05,2]
[404028759,1769752162717,-500.0,9.65e-05,2]
[404028760,1769752162738,-500.0,9.65e-05,2]
[404028761,1769752162758,-500.0,9.65e-05,2]
[404028762,1769752162780,-500.0,9.65e-05,2]
[404028763,1769752162801,-500.0,9.65e-05,2]
[404028764,1769752162822,-500.0,9.65e-05,2]
[404028765,1769752162843,-500.0,9.65e-05,2]
[404028766,1769752162874,-500.0,9.65e-05,2]
[404028767,1769752162897,-500.0,9.65e-05,2]
[404028768,1769752162919,-500.0,9.65e-05,2]
[404028769,1769752162940,-500.0,9.65e-05,2]
[404028770,1769752162962,-500.0,9.65e-05,2]
[404028771,1769752162984,-500.0,9.65e-05,2]
[404028772,1769752163009,-500.0,9.65e-05,2]
[404028773,1769752163033,-500.0,9.65e-05,2]
[404028774,1769752163056,-500.0,9.65e-05,2]
[404028775,1769752163079,-437.75355777,9.65e-05,2]
[404028776,1769752163101,-413.72826921,9.65e-05,2]
[404028777,1769752163123,-500.0,9.65e-05,2]
[404028778,1769752163144,-500.0,9.65e-05,2]
[404028779,1769752163165,-500.0,9.65e-05,2]
[404028780,1769752163186,-500.0,9.65e-05,2]
[404028781,1769752163207,-500.0,9.65e-05,2]
[404028782,1769752163228,-500.0,9.65e-05,2]
[404028783,1769752163250,-500.0,9.65e-05,2]
[404028784,1769752163271,-500.0,9.65e-05,2]
[404028785,1769752163293,-500.0,9.65e-05,2]
[404028786,1769752163315,-500.0,9.65e-05,2]
[404028787,1769752163336,-631.27429568,9.65e-05,2]
[404028788,1769752163357,-500.0,9.651e-05,2]
[404028789,1769752163379,-150.0,9.651e-05,2]
[404028790,1769752163400,-500.0,9.651e-05,2]
[404028791,1769752163421,-358.5968267,9.651e-05,2]
[404028792,1769752163443,-500.0,9.651e-05,2]
[404028793,1769752163464,-189.60909828,9.651e-05,2]
[404028794,1769752163484,-205.29684661,9.651e-05,2]
[404028795,1769752163506,-500.0,9.651e-05,2]
[404028796,1769752163527,-500.0,9.652e-05,2]
[404028797,1769752163549,-151.14235464,9.652e-05,2]
[404028798,1769752163571,-500.0,9.652e-05,2]
[404028799,1769752163593,-154.58953882,9.652e-05,2]
[404028800,1769752163616,-500.0,9.652e-05,2]
[404028801,1769752163639,-150.0,9.652e-05,2]
[404028802,1769752163659,-150.87381515,9.652e-05,2]
[404028803,1769752163679,-500.0,9.652e-05,2]
[404028804,1769752163700,-152.71823812,9.652e-05,2]
[404028805,1769752163720,-203.73714875,9.652e-05,2]
[404028806,1769752163741,-500.0,9.652e-05,2]
[404028807,1769752163762,-500.0,9.652e-05,2]
[404028808,1769752163783,-500.0,9.652e-05,2]
[404028809,1769752163803,-150.0,9.652e-05,2]
[404028810,1769752163824,-150.0,9.652e-05,2]
[404028811,1769752163845,-150.0,9.652e-05,2]
[404028812,1769752163864,-150.0,9.652e-05,2]
[404028813,1769752163882,-150.0,9.652e-05,2]
[404028814,1769752163902,-338.807,9.652e-05,2]
[404028815,1769752163922,-262.38384025,9.788e-05,2]
[404028816,1769752163944,-500.0,9.788e-05,2]
[404028817,1769752163964,-203.38418679,9.788e-05,2]
[404028818,1769752163985,-500.0,9.788e-05,2]
[404028819,1769752164007,-500.0,9.789e-05,2]
[404028820,1769752164028,-500.0,9.789e-05,2]
[404028821,1769752164049,-500.0,9.789e-05,2]
[404028822,1769752164068,-150.0,9.789e-05,2]
[404028823,1769752164229,-500.0,9.789e-05,2]
[404028824,1769752164254,-500.0,9.789e-05,2]
[404028825,1769752164274,-500.0,9.789e-05,2]
[404028826,1769752164295,-500.0,9.789e-05,2]
[404028827,1769752164318,-250.9368634,9.789e-05,2]
[404028828,1769752164338,-202.37064087,9.789e-05,2]
[404028829,1769752164360,-150.0,9.789e-05,2]
[404028830,1769752164381,-150.0,9.789e-05,2]
[404028831,1769752164402,-150.0,9.789e-05,2]
[404028832,1769752164423,-418.07456107,9.824e-05,2]
[404028833,1769752164448,-74378.38117505,9.825e-05,2]
[404028870,1769752231947,-555.0,9.649e-05,2]
[404028872,1769752231957,-150.0,9.683e-05,2]
[404028874,1769752231967,-150.0,9.683e-05,2]
[404028876,1769752231976,-150.0,9.683e-05,2]
[404028879,1769752231986,-150.0,9.683e-05,2]
[404028881,1769752231995,-500.0,9.683e-05,2]
[404028884,1769752232004,-150.0,9.683e-05,2]
[404028887,1769752232014,-500.0,9.683e-05,2]
[404028889,1769752232023,-150.0,9.683e-05,2]
[404028891,1769752232032,-150.0,9.683e-05,2]
[404028893,1769752232042,-500.0,9.683e-05,2]
[404028896,1769752232051,-150.0,9.82e-05,2]
[404028897,1769752232060,-150.0,9.82e-05,2]
[404028900,1769752232070,-262.46605535,9.82e-05,2]
[404028902,1769752232079,-291.55416405,9.82e-05,2]
[404028903,1769752232088,-500.0,9.82e-05,2]
[404028905,1769752232098,-150.0,9.82e-05,2]
[404028907,1769752232107,-628.21663748,9.82e-05,2]
[404028909,1769752232116,-270.40740954,9.82e-05,2]
[404028912,1769752232125,-150.0,9.82e-05,2]
[404028913,1769752232135,-500.0,9.82e-05,2]
[404028915,1769752232144,-500.0,9.824e-05,2]
[404028918,1769752232153,-178.46243621,9.824e-05,2]
[404028919,1769752232163,-500.0,9.824e-05,2]
[404028921,1769752232172,-270.86150642,9.824e-05,2]
[404028923,1769752232181,-500.0,9.824e-05,2]
[404028925,1769752232190,-379.30314102,9.824e-05,2]
[404028927,1769752232199,-287.0,9.824e-05,2]
[404028929,1769752232208,-208.0,9.824e-05,2]
[404028932,1769752232217,-300.0,9.824e-05,2]
[404028934,1769752232227,-384950.92953104,9.825e-05,2]
[404028936,1769752232238,-445.54528704,9.825e-05,2]
[404028938,1769752232252,-9969.62384693,9.825e-05,2]
[404028992,1769752238050,-957.60240792,9.825e-05,2]
[404029000,1769752238107,-19316.29751315,9.825e-05,2]
[404029221,1769752240496,-2e-08,9.825e-05,2]
[404029292,1769752244554,-22317.45275985,9.825e-05,2]
[404029301,1769752246460,-526.20425982,9.825e-05,2]
[404029302,1769752246472,-30248.15037486,9.825e-05,2]
[404029313,1769752820603,-216.61754413,9.32e-05,2]
[404029314,1769752820629,-866.47017653,9.32e-05,2]
[404029315,1769752820673,-730.33761695,9.32e-05,2]
[404029316,1769752847852,150.0,0.00024988,120]
[404029317,1769752848198,273.77,0.00026513,120]
[404029318,1769752848556,410.66,0.00028038,120]
[404029319,1769752848971,547.54,0.00029563,120]
[404029320,1769752849810,-1083.08772066,9.32e-05,2]
[404029321,1769752870684,150.0,0.00024977,120]
[404029322,1769752871084,258.7,0.00026501,120]
[404029323,1769752871493,388.04,0.00028026,120]
[404029324,1769752871846,517.39,0.0002955,120]
[404029325,1769752884972,263.16121658,0.0001,11]
[404029326,1769752890241,150.0,0.00024954,120]
[404029327,1769752890612,244.36,0.00026477,120]
[404029328,1769752890981,366.54,0.00028,120]
[404029329,1769752891461,488.72,0.00029523,120]
[404029330,1769752911244,150.0,0.00025039,120]
[404029331,1769752911593,230.73,0.00026567,120]
[404029332,1769752912022,346.09,0.00028095,120]
[404029333,1769752912354,461.45,0.00029623,120]
[404029334,1769752938365,150.0,0.00024883,120]
[404029335,1769752938740,217.76,0.00026402,120]
[404029336,1769752939137,326.65,0.0002792,120]
[404029337,1769752939509,435.53,0.00029439,120]
[404029338,1769752954242,799.0,0.00029623,120]
[404029339,1769752955731,513.59,0.00029623,120]
[404029340,1769752958992,150.0,0.00027369,120]
[404029341,1769752959377,205.44,0.00029039,120]
[404029342,1769753078724,1000.0,0.0001,12]
[404029344,1769753204130,-220.45429345,9.32e-05,2]
[404029345,1769753204152,-18.27834422,9.32e-05,2]
[404029346,1769753244105,-481.72165578,9.32e-05,2]
[404029347,1769753244126,-500.0,9.32e-05,2]
[404029348,1769753244147,-500.0,9.32e-05,2]
[404029349,1769753244168,-551.0,9.32e-05,2]
[404029350,1769753244189,-350.7999297,9.525e-05,2]
[404029351,1769753244209,-207.95185693,9.528e-05,2]
[404029352,1769753244230,-300.0,9.545e-05,2]
[404029353,1769753244251,-300.0,9.545e-05,2]
[404029354,1769753244272,-500.0,9.546e-05,2]
[404029355,1769753244292,-500.0,9.546e-05,2]
[404029356,1769753244313,-500.0,9.546e-05,2]
[404029357,1769753244333,-500.0,9.546e-05,2]
[404029358,1769753244354,-500.0,9.546e-05,2]
[404029359,1769753244374,-343.931,9.546e-05,2]
[404029360,1769753244394,-500.0,9.546e-05,2]
[404029361,1769753244414,-150.0,9.546e-05,2]
[404029362,1769753244440,-150.0,9.546e-05,2]
[404029363,1769753244468,-500.0,9.546e-05,2]
[404029364,1769753244491,-500.0,9.546e-05,2]
[404029365,1769753244512,-500.0,9.546e-05,2]
[404029366,1769753244532,-50000.0,9.546e-05,2]
[404029367,1769753244553,-390.46435492,9.548e-05,2]
[404029368,1769753244574,-500.0,9.548e-05,2]
[404029369,1769753244595,-973.46555589,9.548e-05,2]
[404029370,1769753244616,-500.0,9.548e-05,2]
[404029371,1769753244803,-500.0,9.548e-05,2]
[404029372,1769753244827,-300.95722936,9.548e-05,2]
[404029373,1769753244849,-973.46555589,9.548e-05,2]
[404029374,1769753244871,-500.0,9.548e-05,2]
[404029375,1769753244895,-973.46555589,9.548e-05,2]
[404029376,1769753244924,-500.0,9.548e-05,2]
[404029377,1769753244947,-189.98465313,9.548e-05,2]
[404029378,1769753244970,-500.0,9.548e-05,2]
[404029379,1769753244991,-973.46555589,9.548e-05,2]
[404029380,1769753245013,-973.46555589,9.548e-05,2]
[404029381,1769753245034,-631.11224836,9.548e-05,2]
[404029382,1769753245054,-973.46555589,9.548e-05,2]
[404029383,1769753245076,-168.13498313,9.548e-05,2]
[404029384,1769753245097,-500.0,9.548e-05,2]
[404029385,1769753245117,-973.46555589,9.548e-05,2]
[404029386,1769753245139,-973.46555589,9.548e-05,2]
[404029387,1769753245162,-500.0,9.548e-05,2]
[404029388,1769753245181,-973.46555589,9.548e-05,2]
[404029389,1769753245202,-228.68328723,9.548e-05,2]
[404029390,1769753348181,230.13454704,8.743e-05,2]
[404029391,1769753350152,920.53818817,8.953e-05,2]
[404029392,1769753359028,-2071.21092338,9.163e-05,2]
[404029393,1769753370104,-565.36190369,9.452e-05,2]
[404029394,1769753370126,-300.0,9.547e-05,2]
[404029395,1769753370146,-300.0,9.547e-05,2]
[404029396,1769753370167,-695.64040143,9.548e-05,2]
[404029405,1769753432135,-300.0,9.545e-05,2]
[404029407,1769753432146,-108.04486319,9.545e-05,2]
[404029410,1769753432196,-191.95513681,9.545e-05,2]
[404029412,1769753432206,-300.0,9.545e-05,2]
[404029415,1769753432216,-441.04486319,9.545e-05,2]
[404029466,1769753438122,-112.95513681,9.545e-05,2]
[404029467,1769753438132,-467.57006265,9.545e-05,2]
[404029469,1769753438143,-732.42993735,9.545e-05,2]
[404029471,1769753438152,-500.0,9.546e-05,2]
[404029473,1769753438162,-500.0,9.546e-05,2]
[404029475,1769753438172,-781.74817784,9.546e-05,2]
[404029477,1769753438183,-110.92386039,9.546e-05,2]
[404029479,1769753438194,-500.0,9.546e-05,2]
[404029481,1769753438203,-500.0,9.546e-05,2]
[404029483,1769753438213,-892.67203823,9.546e-05,2]
[404029485,1769753438223,-500.0,9.546e-05,2]
[404029487,1769753438232,-500.0,9.546e-05,2]
[404029489,1769753438241,-892.67203823,9.546e-05,2]
[404029491,1769753438251,-197.24467469,9.546e-05,2]
[404029493,1769753438263,-302.75532531,9.546e-05,2]
[404029495,1769753438272,-500.0,9.546e-05,2]
[404029497,1769753438282,-892.67203823,9.546e-05,2]
[404029499,1769753438292,-500.0,9.546e-05,2]
[404029501,1769753438302,-500.0,9.546e-05,2]
[404029503,1769753438311,-892.67203823,9.546e-05,2]
[404029504,1769753438322,-892.67203823,9.546e-05,2]
[404029507,1769753438332,-500.0,9.546e-05,2]
[404029508,1769753438342,-500.0,9.546e-05,2]
[404029510,1769753438352,-500.0,9.546e-05,2]
[404029511,1769753438361,-892.67203823,9.546e-05,2]
[404029512,1769753438370,-500.0,9.546e-05,2]
[404029513,1769753438380,-500.0,9.546e-05,2]
[404029514,1769753438389,-892.67203823,9.546e-05,2]
[404029515,1769753438398,-500.0,9.546e-05,2]
[404029516,1769753438407,-892.67203823,9.546e-05,2]
[404029517,1769753438417,-500.0,9.546e-05,2]
[404029519,1769753438429,-500.0,9.546e-05,2]
[404029521,1769753438438,-892.67203823,9.546e-05,2]
[404029523,1769753438448,-609.98620711,9.546e-05,2]
[404029524,1769753438457,-500.0,9.546e-05,2]
[404029526,1769753438466,-892.67203823,9.546e-05,2]
[404029527,1769753438476,-500.0,9.546e-05,2]
[404029528,1769753438486,-243.97820199,9.546e-05,2]
[404029529,1769753438495,-892.67203823,9.546e-05,2]
[404029530,1769753438504,-892.67203823,9.546e-05,2]
[404029531,1769753438514,-500.0,9.546e-05,2]
[404029532,1769753438525,-892.67203823,9.546e-05,2]
[404029533,1769753438535,-500.0,9.546e-05,2]
[404029534,1769753438545,-892.67203823,9.546e-05,2]
[404029535,1769753438554,-500.0,9.546e-05,2]
[404029536,1769753438564,-500.0,9.546e-05,2]
[404029537,1769753438573,-892.67203823,9.546e-05,2]
[404029538,1769753438582,-892.67203823,9.546e-05,2]
[404029539,1769753438592,-500.0,9.546e-05,2]
[404029540,1769753438602,-622.35544229,9.546e-05,2]
[404029541,1769753438611,-892.67203823,9.546e-05,2]
[404029542,1769753438620,-892.67203823,9.546e-05,2]
[404029543,1769753438631,-500.0,9.546e-05,2]
[404029544,1769753438640,-892.67203823,9.546e-05,2]
[404029545,1769753438650,-500.0,9.546e-05,2]
[404029546,1769753438659,-892.67203823,9.546e-05,2]
[404029547,1769753438669,-500.0,9.546e-05,2]
[404029548,1769753438679,-892.67203823,9.546e-05,2]
[404029549,1769753438688,-892.67203823,9.546e-05,2]
[404029550,1769753438698,-500.0,9.546e-05,2]
[404029551,1769753438707,-892.67203823,9.546e-05,2]
[404029552,1769753438716,-892.67203823,9.546e-05,2]
[404029553,1769753438726,-892.67203823,9.546e-05,2]
[404029554,1769753438736,-892.67203823,9.546e-05,2]
[404029555,1769753438746,-892.67203823,9.546e-05,2]
[404029556,1769753438755,-892.67203823,9.546e-05,2]
[404029557,1769753438765,-892.67203823,9.546e-05,2]
[404029558,1769753438775,-892.67203823,9.546e-05,2]
[404029559,1769753438784,-892.67203823,9.546e-05,2]
[404029560,1769753438794,-892.67203823,9.546e-05,2]
[404029561,1769753438804,-892.67203823,9.546e-05,2]
[404029562,1769753438813,-892.67203823,9.546e-05,2]
[404029563,1769753438822,-892.67203823,9.546e-05,2]
[404029564,1769753438833,-892.67203823,9.546e-05,2]
[404029565,1769753438842,-892.67203823,9.546e-05,2]
[404029566,1769753438852,-892.67203823,9.546e-05,2]
[404029567,1769753438862,-892.67203823,9.546e-05,2]
[404029568,1769753438872,-892.67203823,9.546e-05,2]
[404029569,1769753438882,-892.67203823,9.546e-05,2]
[404029570,1769753438892,-892.67203823,9.546e-05,2]
[404029571,1769753438901,-892.67203823,9.546e-05,2]
[404029572,1769753438911,-892.67203823,9.546e-05,2]
[404029573,1769753438921,-892.67203823,9.546e-05,2]
[404029574,1769753438931,-892.67203823,9.546e-05,2]
[404029575,1769753438940,-892.67203823,9.546e-05,2]
[404029576,1769753438950,-892.67203823,9.546e-05,2]
[404029577,1769753438962,-892.67203823,9.546e-05,2]
[404029578,1769753438972,-892.67203823,9.546e-05,2]
[404029579,1769753438981,-892.67203823,9.546e-05,2]
[404029580,1769753438991,-892.67203823,9.546e-05,2]
[404029581,1769753439000,-892.67203823,9.546e-05,2]
[404029582,1769753439010,-892.67203823,9.546e-05,2]
[404029583,1769753439021,-892.67203823,9.546e-05,2]
[404029584,1769753439033,-892.67203823,9.546e-05,2]
[404029585,1769753439044,-892.67203823,9.546e-05,2]
[404029586,1769753439053,-278.3764815,9.546e-05,2]
[404029587,1769753439063,-150.0,9.546e-05,2]
[404029588,1769753439074,-500.0,9.546e-05,2]
[404029589,1769753439085,-150.0,9.546e-05,2]
[404029590,1769753439095,-500.0,9.546e-05,2]
[404029591,1769753439105,-150.0,9.546e-05,2]
[404029592,1769753439121,-150.0,9.546e-05,2]
[404029593,1769753439136,-150.0,9.546e-05,2]
[404029594,1769753439146,-150.0,9.546e-05,2]
[404029595,1769753439156,-150.0,9.546e-05,2]
[404029596,1769753439167,-150.0,9.546e-05,2]
[404029597,1769753439178,-150.0,9.546e-05,2]
[404029598,1769753439188,-223.52873548,9.548e-05,2]
[404029599,1769753439198,-500.0,9.548e-05,2]
[404029600,1769753439208,-45278.57776659,9.548e-05,2]
[404029601,1769753439223,-1898.92123839,9.548e-05,2]
[404029602,1769753439234,-151.0,9.548e-05,2]
[404029603,1769753439244,-151.0,9.548e-05,2]
[404029604,1769753439255,-151.0,9.548e-05,2]
[404029605,1769753439265,-151.0,9.548e-05,2]
[404029606,1769753439274,-151.0,9.548e-05,2]
[404029607,1769753439284,-151.0,9.548e-05,2]
[404029608,1769753439295,-151.0,9.548e-05,2]
[404029609,1769753439306,-151.0,9.548e-05,2]
[404029610,1769753439316,-500.0,9.683e-05,2]
[404029611,1769753439326,-500.0,9.683e-05,2]
[404029612,1769753439338,-500.0,9.683e-05,2]
[404029613,1769753439348,-500.0,9.683e-05,2]
[404029614,1769753439358,-500.0,9.683e-05,2]
[404029615,1769753439368,-500.0,9.683e-05,2]
[404029616,1769753439379,-150.0,9.683e-05,2]
[404029617,1769753439388,-500.0,9.683e-05,2]
[404029618,1769753439398,-150.0,9.683e-05,2]
[404029619,1769753439407,-500.0,9.683e-05,2]
[404029620,1769753439418,-150.0,9.683e-05,2]
[404029621,1769753439427,-150.0,9.683e-05,2]
[404029622,1769753439437,-150.0,9.683e-05,2]
[404029623,1769753439448,-150.0,9.683e-05,2]
[404029624,1769753439457,-215.79970892,9.683e-05,2]
[404029625,1769753439467,-150.367163,9.683e-05,2]
[404029626,1769753439477,-8085.47864774,9.817e-05,2]
[404029627,1769753439486,-187.78006525,9.817e-05,2]
[404029628,1769753439496,-194.72792766,9.817e-05,2]
[404029629,1769753439506,-201.93286099,9.817e-05,2]
[404029630,1769753439516,-209.40437684,9.817e-05,2]
[404029631,1769753439525,-217.15233878,9.817e-05,2]
[404029632,1769753439535,-250.0,9.817e-05,2]
[404029633,1769753439544,-225.18697532,9.817e-05,2]
[404029634,1769753439554,-250.0,9.817e-05,2]
[404029635,1769753439563,-233.51889341,9.817e-05,2]
[404029636,1769753439574,-2000.0,9.817e-05,2]
[404029637,1769753439584,-250.0,9.817e-05,2]
[404029638,1769753439594,-242.15909246,9.817e-05,2]
[404029639,1769753439604,-1500.0,9.817e-05,2]
[404029640,1769753439613,-250.0,9.817e-05,2]
[404029641,1769753439625,-251.11897888,9.817e-05,2]
[404029642,1769753439635,-250.0,9.817e-05,2]
[404029643,1769753439646,-260.4103811,9.817e-05,2]
[404029644,1769753439656,-250.0,9.817e-05,2]
[404029645,1769753439670,-270.0455652,9.817e-05,2]
[404029646,1769753439680,-250.0,9.817e-05,2]
[404029647,1769753439690,-280.03725112,9.817e-05,2]
[404029648,1769753439699,-250.0,9.817e-05,2]
[404029649,1769753439708,-290.39862941,9.817e-05,2]
[404029650,1769753439718,-250.0,9.817e-05,2]
[404029651,1769753439728,-2487.15318209,9.817e-05,2]
[404029652,1769753439737,-301.1433787,9.817e-05,2]
[404029653,1769753439746,-250.0,9.817e-05,2]
[404029654,1769753439756,-328.41812978,9.817e-05,2]
[404029655,1769753439765,-250.0,9.817e-05,2]
[404029656,1769753439775,-250.0,9.817e-05,2]
[404029657,1769753439784,-308.76416644,9.817e-05,2]
[404029658,1769753439794,-500.0,9.82e-05,2]
[404029659,1769753439807,-500.0,9.82e-05,2]
[404029660,1769753439816,-500.0,9.82e-05,2]
[404029661,1769753439825,-500.0,9.82e-05,2]
[404029662,1769753439835,-500.0,9.82e-05,2]
[404029663,1769753439844,-500.0,9.82e-05,2]
[404029664,1769753439854,-237.40620932,9.82e-05,2]
[404029665,1769753439864,-500.0,9.82e-05,2]
[404029666,1769753439874,-150.0,9.82e-05,2]
[404029667,1769753439883,-500.0,9.82e-05,2]
[404029669,1769753439893,-150.0,9.82e-05,2]
[404029670,1769753439902,-150.0,9.82e-05,2]
[404029671,1769753439912,-151.35136944,9.82e-05,2]
[404029672,1769753439922,-500.0,9.822e-05,2]
[404029673,1769753439931,-151.0,9.825e-05,2]
[404029675,1769753439940,-151.0,9.825e-05,2]
[404029676,1769753439950,-151.0,9.825e-05,2]
[404029677,1769753439963,-254.3958895,9.825e-05,2]
[404029679,1769753439973,-200.0,9.957e-05,2]
[404029680,1769753439982,-500.0,9.957e-05,2]
[404029681,1769753439993,-350.0,9.957e-05,2]
[404029682,1769753440002,-500.0,9.957e-05,2]
[404029684,1769753440012,-500.0,9.957e-05,2]
[404029685,1769753440021,-350.0,9.957e-05,2]
[404029686,1769753440033,-2.22838758,9.957e-05,2]
[404029688,1769753440045,-163.01115614,9.957e-05,2]
[404029689,1769753440056,-150.0,9.957e-05,2]
[404029690,1769753440065,-500.0,9.957e-05,2]
[404029691,1769753440074,-255.83581059,9.957e-05,2]
[404029692,1769753440084,-200.0,9.957e-05,2]
[404029693,1769753440093,-155.12,0.0001,2]
[404029694,1769753440103,-151.0,0.0001,2]
[404029695,1769753440113,-151.0,0.0001,2]
[404029696,1769753440122,-151.0,0.0001,2]
[404029697,1769753440136,-151.0,0.0001,2]
[404029698,1769753440146,-151.0,0.0001,2]
[404029699,1769753440155,-151.0,0.0001,2]
[404029700,1769753440164,-242.60493921,0.0001,2]
[404029701,1769753440174,-619.53830606,0.00010026,2]
[404029702,1769753440183,-1393.96118863,0.00010026,2]
[404029703,1769753440193,-856.14729864,0.00010026,2]
[404029704,1769753440202,-1926.33142193,0.00010026,2]
[404029705,1769753440212,-151.0,0.00010027,2]
[404029706,1769753440222,-151.0,0.00010027,2]
[404029708,1769753440231,-151.0,0.00010027,2]
[404029710,1769753440240,-269.895639,0.00010027,2]
[404029711,1769753440250,-151.0,0.00010027,2]
[404029712,1769753440259,-151.0,0.00010027,2]
[404029713,1769753440268,-151.0,0.00010027,2]
[404029714,1769753440278,-233.604737,0.00010027,2]
[404029715,1769753440287,-150.0,0.00010094,2]
[404029716,1769753440297,-500.0,0.00010094,2]
[404029717,1769753440306,-150.0,0.00010094,2]
[404029718,1769753440316,-300.0,0.00010094,2]
[404029719,1769753440325,-500.0,0.00010096,2]
[404029720,1769753440335,-500.0,0.00010231,2]
[404029721,1769753440345,-262.36,0.0001027,2]
[404029722,1769753440355,-2579.17784983,0.00010365,2]
[404029723,1769753440364,-509.81152745,0.00010368,2]
[404029724,1769753440375,-500.0,0.0001037,2]
[404029725,1769753440384,-420.0,0.000104,2]
[404029726,1769753440394,-420.0,0.000105,2]
[404029727,1769753440403,-300.0,0.00010729,2]
[404029728,1769753440414,-300.0,0.00010729,2]
[404029729,1769753440424,-300.0,0.00010729,2]
[404029730,1769753440433,-300.0,0.00010729,2]
[404029731,1769753440443,-300.0,0.00010729,2]
[404029732,1769753440453,-300.0,0.00010729,2]
[404029733,1769753440462,-300.0,0.00010729,2]
[404029734,1769753440472,-300.0,0.00010729,2]
[404029735,1769753440485,-300.0,0.00010729,2]
[404029736,1769753440494,-300.0,0.00010729,2]
[404029737,1769753440503,-300.0,0.00010729,2]
[404029738,1769753440513,-300.0,0.00010729,2]
[404029739,1769753440523,-300.0,0.00010729,2]
[404029740,1769753440532,-300.0,0.00010729,2]
[404029741,1769753440542,-300.0,0.00010729,2]
[404029742,1769753440552,-600.0,0.00010729,2]
[404029743,1769753440562,-2674.60743027,0.00010913,2]
[404029744,1769753440571,-168.1162592,0.00010959,2]
[404029745,1769753440580,-263.76390786,0.00011548,2]
[404029746,1769753440590,-167.0,0.00011549,2]
[404029747,1769753440599,-166.0,0.00011685,2]
[404029748,1769753440609,-166.0,0.00011685,2]
[404029749,1769753440618,-348.0,0.00011685,2]
[404029750,1769753440627,-348.0,0.00011685,2]
[404029751,1769753440636,-348.0,0.00011685,2]
[404029752,1769753440646,-348.0,0.00011685,2]
[404029754,1769753440655,-348.0,0.00011685,2]
[404029755,1769753440665,-348.0,0.00011685,2]
[404029756,1769753440674,-348.0,0.00011685,2]
[404029757,1769753440683,-348.0,0.00011685,2]
[404029758,1769753440693,-348.0,0.00011685,2]
[404029759,1769753440702,-348.0,0.00011685,2]
[404029760,1769753440712,-348.0,0.00011685,2]
[404029761,1769753440722,-348.0,0.00011685,2]
[404029762,1769753440731,-348.0,0.00011685,2]
[404029763,1769753440740,-348.0,0.00011685,2]
[404029764,1769753440874,-348.0,0.00011685,2]
[404029765,1769753440883,-348.0,0.00011685,2]
[404029766,1769753440893,-348.0,0.00011685,2]
[404029767,1769753440902,-348.0,0.00011685,2]
[404029768,1769753440912,-348.0,0.00011685,2]
[404029769,1769753440921,-348.0,0.00011685,2]
[404029770,1769753440930,-348.0,0.00011685,2]
[404029771,1769753440939,-348.0,0.00011685,2]
[404029772,1769753440948,-348.0,0.00011685,2]
[404029773,1769753440963,-348.0,0.00011685,2]
[404029774,1769753440972,-348.0,0.00011685,2]
[404029775,1769753440981,-348.0,0.00011685,2]
[404029776,1769753440991,-348.0,0.00011685,2]
[404029777,1769753441000,-348.0,0.00011685,2]
[404029778,1769753441009,-348.0,0.00011685,2]
[404029779,1769753441021,-348.0,0.00011685,2]
[404029780,1769753441032,-348.0,0.00011685,2]
[404029781,1769753441042,-348.0,0.00011685,2]
[404029782,1769753441051,-348.0,0.00011685,2]
[404029783,1769753441060,-348.0,0.00011685,2]
[404029784,1769753441069,-348.0,0.00011685,2]
[404029785,1769753441079,-348.0,0.00011685,2]
[404029786,1769753441090,-348.0,0.00011685,2]
[404029787,1769753441099,-348.0,0.00011685,2]
[404029788,1769753441108,-348.0,0.00011685,2]
[404029789,1769753441118,-348.0,0.00011685,2]
[404029790,1769753441129,-348.0,0.00011685,2]
[404029791,1769753441138,-261.77430567,0.00011685,2]
[404029792,1769753441148,-153.0,0.00011685,2]